bitfinex/quotes_ETHUSD_20250110
["timestamp","ask_amount","ask_price","bid_price","bid_amount"]
[1736468468554,0.05273705,3238.4,3237.8,0.254]
[1736468469154,0.7811,3238.2,3237.8,0.254]
[1736468469351,0.7811,3238.2,3237.3,0.253]
[1736468469519,0.55,3237.9,3237.3,0.253]
[1736468470123,0.05293819,3237.8,3237.3,0.253]
[1736468471755,0.05293819,3237.8,3236.9,3.12023048]
[1736468471955,0.05293819,3237.8,3237.0,0.253]
[1736468472122,0.50018201,3237.8,3237.0,0.253]
[1736468472318,0.50018201,3237.8,3237.0,3.34226]
[1736468472658,0.50018201,3237.8,3236.9,0.253]
[1736468472844,0.55,3237.6,3236.4,3.88376]
[1736468473035,5.78018201,3237.8,3236.4,3.34276]
[1736468473036,0.7831,3237.3,3236.4,3.34276]
[1736468473255,0.7831,3237.3,3236.4,0.253]
[1736468473466,0.7831,3237.3,3236.6,3.08962]
[1736468473669,0.05374298,3237.2,3236.6,3.08962]
[1736468473868,0.05374298,3237.2,3236.5,0.03089476]
[1736468474063,0.05374298,3237.2,3236.5,0.03089516]
[1736468474372,0.05374298,3237.2,3236.4,3.34282]
[1736468474573,0.44631728,3237.2,3236.4,0.253]
[1736468474761,0.7634,3237.1,3236.3,0.253]
[1736468474961,0.55,3237.0,3236.3,0.253]
[1736468475161,0.7634,3237.1,3236.4,3.08981]
[1736468475336,0.05374298,3236.9,3236.5,0.03089724]
[1736468475540,0.7634,3237.1,3236.7,3.08947]
[1736468475740,0.05374298,3236.8,3236.7,3.08947]
[1736468475941,5.28,3237.2,3236.7,3.08948]
[1736468476162,0.05374298,3236.8,3236.7,3.08948]
[1736468476342,5.28,3237.2,3236.8,3.08946]
[1736468476548,5.28,3237.2,3236.5,3.08967]
[1736468476750,5.28,3237.2,3236.3,1.0475]
[1736468476958,0.05374298,3237.1,3236.3,4.13739]
[1736468477160,5.28,3237.2,3236.5,3.08966]
[1736468477343,0.05374298,3237.0,3236.3,1.0475]
[1736468477543,5.28,3237.2,3236.3,1.0475]
[1736468477743,0.05374298,3236.9,3236.6,3.08965]
[1736468477953,5.28,3237.2,3236.6,3.08965]
[1736468478368,0.05374298,3237.1,3236.6,3.08965]
[1736468478741,5.28,3237.2,3236.6,3.08965]
[1736468479144,0.05374298,3237.1,3236.6,3.08965]
[1736468479437,5.28,3237.2,3236.5,3.08972]
[1736468479678,3.0894,3236.9,3234.7,0.7629]
[1736468479850,0.7888,3236.8,3234.9,1.0159]
[1736468480160,0.7888,3236.6,3235.8,3.09042]
[1736468480719,0.05374298,3236.5,3235.8,3.09042]
[1736468481194,0.05374298,3236.5,3235.9,0.28390071]
[1736468481396,0.05374298,3236.5,3236.1,3.09009]
[1736468481594,0.05374298,3236.5,3236.2,0.03089685]
[1736468481792,0.05374298,3236.5,3236.1,3.09009]
[1736468481995,0.05374298,3236.5,3236.0,0.253]
[1736468482195,0.7628,3236.4,3235.4,3.09078]
[1736468482514,5.99920907,3236.9,3235.6,0.253]
[1736468482515,0.7628,3236.2,3235.6,0.253]
[1736468483005,0.05290573,3236.1,3235.2,0.7601]
[1736468483209,0.05290573,3236.1,3235.3,3.37480473]
[1736468483407,0.7628,3236.2,3235.3,0.28390473]
[1736468483610,0.0520685,3236.0,3235.5,3.09071]
[1736468483909,0.7628,3236.2,3235.5,3.09071]
[1736468484127,0.05188019,3235.9,3235.5,3.09071]
[1736468484275,0.7628,3236.2,3235.4,0.03090349]
[1736468484479,0.05188019,3235.8,3235.4,0.03090349]
[1736468484680,0.7628,3236.2,3235.4,0.253]
[1736468484938,0.7628,3236.2,3235.5,3.09071]
[1736468485077,0.05188019,3236.1,3235.5,3.09071]
[1736468485279,0.8186,3236.0,3235.3,0.03090473]
[1736468485479,0.8186,3235.8,3234.6,0.253]
[1736468485720,3.90902,3235.8,3234.7,3.09139]
[1736468485923,0.8186,3235.8,3234.8,3.0]
[1736468486085,0.0518737,3235.7,3234.9,3.09123]
[1736468486410,0.8186,3235.6,3234.6,0.253]
[1736468486799,3.90923,3235.6,3234.6,0.253]
[1736468486998,0.0518737,3235.5,3234.6,0.253]
[1736468487311,0.7832,3234.9,3233.9,4.10858]
[1736468487484,0.387439,3234.8,3233.9,3.34518]
[1736468487690,0.7832,3234.9,3233.9,3.34518]
[1736468487891,0.0518737,3234.7,3233.9,3.34518]
[1736468488091,0.7832,3234.9,3233.9,3.34518]
[1736468488293,3.8745,3234.9,3233.9,0.253]
[1736468488491,0.0518737,3234.8,3233.9,0.253]
[1736468488689,0.0518737,3234.8,3233.9,3.3452]
[1736468489380,0.0518737,3234.8,3234.0,3.12303689]
[1736468490214,0.0518737,3234.8,3233.9,0.253]
[1736468490549,0.7832,3234.6,3233.9,0.253]
[1736468490826,3.0,3234.7,3233.3,3.85621]
[1736468490827,0.7832,3234.3,3233.3,3.85621]
[1736468490982,0.7832,3234.3,3233.4,0.03092293]
[1736468491182,0.0518737,3234.2,3233.4,0.03092293]
[1736468491384,0.0518737,3234.2,3233.5,0.0225]
[1736468491585,0.0518737,3234.2,3234.0,3.09205]
[1736468491909,0.7832,3234.7,3234.1,0.03091694]
[1736468492350,0.0518737,3234.6,3234.1,0.03091694]
[1736468493443,0.0518737,3234.6,3234.3,3.09182]
[1736468493643,0.7832,3235.0,3234.5,3.09166]
[1736468494011,0.0518737,3234.9,3234.5,3.09166]
[1736468494203,0.0518737,3234.9,3234.3,3.09183]
[1736468494413,0.7832,3235.0,3234.1,0.253]
[1736468494610,0.7832,3235.0,3234.4,3.09175]
[1736468494809,0.7832,3235.0,3234.5,0.03091278]
[1736468495011,0.0518737,3234.9,3234.5,0.03091278]
[1736468495833,0.0518737,3234.9,3234.5,3.12253278]
[1736468496038,0.0518737,3234.9,3234.5,0.03091278]
[1736468496211,0.0518737,3234.9,3234.3,3.09177]
[1736468496411,0.7832,3235.0,3234.4,3.1226228]
[1736468496611,0.05014571,3234.8,3234.4,3.1226228]
[1736468496843,0.7832,3235.0,3234.4,3.09171]
[1736468497045,0.7832,3235.0,3234.5,0.03091283]
[1736468497447,0.05014571,3234.9,3234.1,0.253]
[1736468497817,0.7832,3235.0,3234.1,0.253]
[1736468498017,0.0501912,3234.8,3234.2,0.03091521]
[1736468498219,0.7832,3235.0,3234.2,3.12281521]
[1736468498747,0.05012621,3234.9,3234.2,3.12281521]
[1736468498909,0.7832,3234.8,3234.2,3.12281521]
[1736468499110,0.7832,3234.4,3233.4,0.258]
[1736468499413,3.87544,3233.9,3232.9,0.258]
[1736468499636,0.43719569,3233.8,3232.7,3.85677]
[1736468499830,3.09264,3233.5,3232.7,0.258]
[1736468500025,3.09257,3233.6,3232.7,0.258]
[1736468500526,0.04965169,3233.5,3232.7,0.258]
[1736468500721,3.09254,3233.6,3232.7,0.258]
[1736468500927,0.7832,3233.3,3232.7,0.258]
[1736468501337,0.7832,3233.3,3232.3,3.09374]
[1736468501338,3.14212792,3233.2,3232.3,0.258]
[1736468501536,0.04913792,3233.2,3232.3,0.258]
[1736468503027,0.04913792,3233.2,3232.0,3.09404]
[1736468503028,0.55,3233.1,3232.0,3.09404]
[1736468503350,0.55,3233.1,3231.9,0.7676]
[1736468503351,3.09323,3232.9,3232.1,0.258]
[1736468503553,3.09323,3232.9,3231.5,0.829]
[1736468503554,0.55,3232.8,3231.6,0.28893634]
[1736468503848,0.59742092,3232.8,3231.8,3.09424]
[1736468504652,0.04742092,3232.8,3231.9,0.03093906]
[1736468505031,0.8209,3233.0,3231.7,3.0]
[1736468505241,0.04730377,3232.7,3231.9,3.09412]
[1736468505438,0.691391,3232.9,3231.9,3.09412]
[1736468505641,0.691391,3232.9,3232.0,3.12498734]
[1736468505832,0.04730377,3232.8,3232.0,3.09405]
[1736468506221,0.04730377,3232.8,3232.1,3.09395]
[1736468508346,0.04730377,3232.8,3231.7,6.09428]
[1736468508347,0.20326325,3232.8,3231.9,3.09414]
[1736468508922,3.8287,3232.4,3231.4,3.09454]
[1736468509124,0.8287,3231.9,3230.6,1.059]
[1736468509458,3.92287,3231.9,3230.8,3.09516]
[1736468509755,0.04731679,3231.8,3230.8,3.09516]
[1736468509960,0.44433547,3231.8,3230.8,3.09516]
[1736468510353,0.44433547,3231.8,3230.9,3.0951]
[1736468510545,0.04731679,3231.8,3230.9,3.12604789]
[1736468510790,0.04731679,3231.8,3231.0,3.09493]
[1736468510944,0.04731679,3231.8,3231.1,0.03094606]
[1736468511455,0.41270733,3232.9,3231.1,0.03094606]
[1736468511456,0.8277,3232.2,3231.5,3.09451]
[1736468511641,0.8277,3232.2,3231.6,0.258]
[1736468511955,0.04676343,3232.1,3231.6,0.258]
[1736468512360,0.04676343,3232.1,3231.6,3.35242]
[1736468512859,0.8277,3232.2,3231.6,3.35242]
[1736468513154,0.8277,3232.2,3231.6,0.258]
[1736468513321,0.59691319,3232.1,3231.6,0.258]
[1736468513520,0.8277,3232.0,3231.0,0.258]
[1736468513740,0.87457413,3232.0,3231.0,0.258]
[1736468514122,0.87457413,3232.0,3231.1,3.09491]
[1736468514345,0.87457413,3232.0,3231.1,0.03094578]
[1736468514530,0.87457413,3232.0,3231.4,3.09463]
[1736468514752,0.87457413,3232.0,3231.2,0.258]
[1736468514940,0.87457413,3232.0,3231.0,3.09499]
[1736468515134,3.96863413,3232.0,3231.1,0.258]
[1736468515341,0.39686341,3231.9,3231.1,0.258]
[1736468515659,0.44295642,3231.9,3231.1,0.258]
[1736468515861,3.53714642,3231.9,3231.1,0.258]
[1736468516532,0.04609301,3231.9,3231.2,0.03094788]
[1736468516733,0.8277,3232.0,3231.2,3.12573788]
[1736468517063,0.04427092,3231.8,3231.2,3.09479]
[1736468517259,0.8277,3232.0,3231.2,3.09479]
[1736468517450,0.04427092,3231.7,3231.1,0.258]
[1736468517651,1.219857,3232.0,3231.1,0.258]
[1736468518158,0.04427092,3231.9,3231.1,0.258]
[1736468518519,0.04427092,3231.9,3231.1,3.3529]
[1736468520559,3.09503,3231.0,3229.9,3.09598]
[1736468520769,0.55,3230.9,3229.6,3.09626]
[1736468520961,3.0,3230.7,3229.7,3.09625]
[1736468521323,0.04427092,3230.6,3229.8,3.12711834]
[1736468521758,0.04427092,3230.6,3229.8,0.03095834]
[1736468522070,3.09558,3230.5,3229.4,3.35552]
[1736468522284,0.31398509,3230.4,3229.4,3.35552]
[1736468522583,3.64578,3230.3,3229.4,0.259]
[1736468523132,0.04309065,3230.2,3229.4,0.259]
[1736468523476,0.814,3230.1,3229.4,3.35554]
[1736468523831,0.04187128,3230.0,3229.6,3.09634]
[1736468524279,0.04187128,3230.0,3229.9,3.09607]
[1736468524638,0.7635,3230.5,3230.0,3.09589]
[1736468524868,0.7635,3230.5,3230.1,3.09581]
[1736468525074,0.04040329,3230.4,3230.1,3.09581]
[1736468525451,0.04040329,3230.4,3230.2,3.09577]
[1736468525657,0.7635,3230.5,3230.1,3.09583]
[1736468525973,0.04040329,3230.4,3229.9,0.259]
[1736468526335,0.795,3230.8,3230.5,3.09546]
[1736468526754,0.795,3230.8,3230.1,3.35487]
[1736468526755,0.8141,3231.3,3231.1,3.0949]
[1736468526950,0.8141,3231.3,3231.2,3.09482]
[1736468527267,0.8141,3231.3,3230.6,0.03095373]
[1736468527268,0.7882,3232.3,3231.5,3.09453]
[1736468527966,0.55,3232.2,3231.5,3.09453]
[1736468528168,0.7882,3232.3,3231.5,3.09453]
[1736468528478,0.7882,3232.3,3231.6,0.03094471]
[1736468528684,0.7882,3232.3,3231.6,3.09438]
[1736468528891,0.7882,3232.3,3231.9,3.09413]
[1736468529182,0.7882,3232.3,3231.6,3.09438]
[1736468529339,0.7882,3232.3,3231.8,3.09422]
[1736468529756,0.7882,3232.3,3231.2,3.0]
[1736468529958,0.7882,3232.3,3231.9,3.09412]
[1736468530686,0.7882,3232.3,3231.1,6.62234441]
[1736468530885,0.7882,3232.3,3231.6,3.09435]
[1736468531088,0.7882,3232.3,3231.3,3.09463]
[1736468531261,0.7882,3232.3,3231.0,1.0866]
[1736468531463,0.55,3232.0,3231.0,3.35093]
[1736468531659,0.7875,3231.9,3231.0,3.35093]
[1736468531859,0.7875,3231.9,3231.0,3.09493]
[1736468532163,0.7875,3231.9,3230.9,0.256]
[1736468532475,0.784,3232.9,3232.1,3.09389]
[1736468532870,0.784,3232.9,3231.9,3.09412]
[1736468532871,0.04085465,3232.8,3231.9,3.09412]
[1736468533267,0.55,3232.7,3231.9,3.09412]
[1736468533466,0.04090685,3232.6,3231.9,3.09412]
[1736468535601,0.04090685,3232.6,3232.0,3.09403]
[1736468536664,0.04090685,3232.6,3231.8,3.35022]
[1736468537563,0.55,3232.4,3231.8,0.256]
[1736468537801,0.8269,3232.1,3231.1,3.09483]
[1736468538000,0.55,3232.0,3231.1,3.09483]
[1736468538300,0.997084,3232.0,3231.1,3.09483]
[1736468538509,0.0422447,3231.9,3231.1,3.09483]
[1736468538978,0.55,3231.5,3229.9,3.52749441]
[1736468539177,0.7758,3231.4,3230.4,3.09559]
[1736468539383,0.7758,3231.4,3230.5,3.3824383]
[1736468539768,0.7758,3231.9,3231.3,3.09471]
[1736468540210,0.7758,3231.9,3231.1,3.09488]
[1736468540568,0.7758,3231.9,3231.2,3.09481]
[1736468542206,0.7758,3231.9,3231.3,0.03094685]
[1736468542379,0.7914,3232.8,3231.9,3.0941]
[1736468543067,0.7575,3232.6,3231.1,0.256]
[1736468543266,0.015,3232.7,3231.1,0.256]
[1736468543267,0.7575,3232.3,3231.1,0.256]
[1736468543511,0.7575,3232.1,3231.2,3.0948]
[1736468543697,0.385144,3232.0,3231.2,3.0948]
[1736468544920,0.385144,3232.0,3231.1,0.256]
[1736468545084,0.7575,3231.9,3231.0,3.09497]
[1736468545281,0.55,3231.6,3230.5,0.256]
[1736468545828,0.7849,3231.5,3230.5,0.256]
[1736468546119,0.387943,3231.4,3230.5,0.256]
[1736468546823,0.8232,3231.2,3230.3,3.09566]
[1736468547044,0.8232,3231.0,3229.7,0.798]
[1736468547200,0.8232,3231.0,3230.0,0.256]
[1736468547522,0.8232,3231.0,3229.7,0.256]
[1736468547894,4.46832,3230.9,3229.9,3.09605]
[1736468548209,0.8232,3230.2,3229.2,3.09667]
[1736468548396,3.09588,3230.1,3229.0,3.35288]
[1736468548726,0.8232,3229.6,3227.8,6.19616]
[1736468549026,0.04003868,3229.5,3228.0,3.0]
[1736468549197,0.04003868,3229.5,3228.7,3.0972]
[1736468549395,0.04003868,3229.5,3228.5,3.09735]
[1736468549396,0.8232,3229.4,3228.5,3.09735]
[1736468549821,0.04003868,3229.3,3228.5,3.09735]
[1736468549994,0.04003868,3229.3,3228.1,0.0225]
[1736468550325,0.04003868,3229.3,3228.8,3.09711]
[1736468550484,0.04003868,3229.3,3227.9,7.163]
[1736468550485,0.8138,3229.2,3227.9,3.09798]
[1736468550689,0.8138,3229.2,3228.0,0.28697066]
[1736468550892,0.8138,3229.2,3228.4,3.09747]
[1736468551323,0.04003868,3229.1,3228.3,0.256]
[1736468551626,0.04003868,3229.1,3228.2,3.09768]
[1736468552747,0.8138,3229.0,3228.2,3.35368]
[1736468553301,0.04003868,3228.9,3228.2,3.35368]
[1736468553994,0.04003868,3228.9,3228.3,0.03097235]
[1736468555032,0.04003868,3228.9,3228.2,3.35368]
[1736468555631,0.04003868,3228.9,3228.4,3.09749]
[1736468555927,0.04003868,3228.9,3228.5,0.030971]
[1736468556136,0.04003868,3228.9,3228.8,3.09712]
[1736468556326,0.8079,3229.4,3228.8,3.09712]
[1736468556497,0.03768649,3229.3,3228.8,3.09712]
[1736468559034,0.03768649,3229.3,3228.6,3.3533]
[1736468559236,0.03768649,3229.3,3228.4,3.09748]
[1736468559439,0.03768649,3229.3,3228.4,3.35248]
[1736468559740,0.03768649,3229.3,3228.4,3.09748]
[1736468560937,0.03768649,3229.3,3228.2,0.255]
[1736468560938,0.55,3229.2,3228.2,0.255]
[1736468561122,0.03786952,3229.1,3228.2,0.255]
[1736468561802,0.8098,3229.0,3228.2,0.255]
[1736468562009,0.03767995,3228.9,3228.2,0.255]
[1736468564062,1.3309,3228.8,3227.7,0.1636007]
[1736468564358,0.7809,3228.5,3227.7,0.1636007]
[1736468564505,1.21399,3228.5,3227.7,0.1636007]
[1736468564860,0.03743152,3228.4,3227.7,0.1636007]
[1736468565356,0.7809,3228.3,3227.7,0.1636007]
[1736468565881,0.03743152,3228.2,3227.7,0.1636007]
[1736468566003,0.7637,3228.1,3227.7,0.1636007]
[1736468566367,0.38988615,3228.0,3227.7,0.1636007]
[1736468566704,0.03743152,3227.9,3227.7,0.1636007]
[1736468567505,0.7864,3227.8,3227.7,0.1636007]
[1736468567863,0.82383152,3227.8,3227.7,0.1636007]
[1736468568856,0.03743152,3227.8,3227.7,0.1636007]
[1736468569163,0.7864,3228.1,3227.7,0.1636007]
[1736468569658,0.03743152,3228.0,3227.7,0.1636007]
[1736468570557,3.64803,3227.9,3227.7,0.1636007]
[1736468570705,5.18897559,3227.8,3227.7,0.1636007]
[1736468570905,5.22591007,3227.8,3227.7,0.1636007]
[1736468581567,0.03693448,3227.8,3227.7,0.1636007]
[1736468581714,0.03693448,3227.8,3227.7,3.2617807]
[1736468581911,0.7821,3228.6,3227.7,0.1636007]
[1736468582151,0.03447946,3228.5,3227.7,0.1636007]
[1736468582354,0.55,3228.4,3227.7,0.1636007]
[1736468582558,3.6477,3228.2,3227.7,0.1636007]
[1736468583272,0.7821,3228.0,3227.7,0.1636007]
[1736468583775,0.03481332,3227.9,3227.7,0.1636007]
[1736468585489,3.09808,3227.8,3227.7,0.1636007]
[1736468585773,7.79355399,3227.8,3227.7,0.1636007]
[1736468585952,9.27026115,3227.8,3227.7,0.1636007]
[1736468586724,8.88338716,3227.8,3227.7,0.1636007]
[1736468595153,14.6749003,3227.8,3227.7,0.1636007]
[1736468595456,0.55,3226.7,3226.2,0.8235]
[1736468595959,0.03395561,3226.6,3226.2,0.8235]
[1736468596593,6.09909,3226.8,3226.2,0.8235]
[1736468596849,0.03395561,3226.7,3226.2,0.8235]
[1736468597050,0.7974,3226.6,3225.3,0.248]
[1736468597213,0.7974,3226.0,3224.7,3.92451]
[1736468597421,3.13349879,3225.9,3224.9,3.10083]
[1736468597615,3.13349879,3225.9,3224.7,0.8235]
[1736468597616,0.03358879,3225.9,3224.7,0.8235]
[1736468597820,3.65011,3225.7,3224.6,3.10115]
[1736468598018,3.10037,3225.5,3224.5,0.1636007]
[1736468598571,3.13353731,3225.4,3224.5,0.1636007]
[1736468598751,0.03309731,3225.4,3224.5,0.1636007]
[1736468599061,0.55,3225.7,3224.7,3.10104]
[1736468599219,0.03309731,3225.3,3224.8,0.03100654]
[1736468599416,1.33748944,3225.7,3224.8,0.03100654]
[1736468599664,0.03309731,3225.2,3225.1,3.10059]
[1736468599951,0.55,3226.3,3225.3,3.10043]
[1736468600112,3.55,3226.3,3225.3,3.13143124]
[1736468600317,0.03068286,3226.2,3225.5,3.10025]
[1736468600553,0.03068286,3226.2,3225.6,3.13115123]
[1736468600858,0.03068286,3226.1,3225.7,0.817]
[1736468601283,3.64926,3226.6,3225.7,0.817]
[1736468601444,3.09942,3226.5,3225.7,0.817]
[1736468601781,3.0,3226.0,3225.3,0.8249]
[1736468602127,0.03068286,3225.9,3225.3,0.8249]
[1736468602485,0.03068286,3225.9,3225.4,3.13137196]
[1736468602630,0.03068286,3225.9,3225.3,0.8249]
[1736468602825,3.09984,3226.0,3225.3,0.8249]
[1736468603084,0.55,3225.8,3224.9,0.7891]
[1736468603224,0.55,3225.8,3224.6,0.7891]
[1736468603225,3.0,3225.4,3224.6,0.7891]
[1736468603428,6.10039,3225.4,3224.6,0.7891]
[1736468603630,0.8259,3225.2,3224.6,0.7891]
[1736468603864,3.52749441,3225.1,3224.6,0.7891]
[1736468604097,4.52159729,3225.2,3224.5,0.1636007]
[1736468604726,0.03068286,3225.1,3224.6,0.03101055]
[1736468604927,0.03068286,3225.1,3224.5,0.1636007]
[1736468605131,0.03068286,3225.0,3224.5,0.1636007]
[1736468605368,0.55,3225.4,3224.5,0.1636007]
[1736468605693,0.0304795,3225.3,3224.5,0.1636007]
[1736468605829,0.77824645,3225.3,3224.5,0.1636007]
[1736468606024,0.0304795,3225.3,3224.7,0.7955]
[1736468606232,3.0,3225.7,3224.8,0.03100906]
[1736468606430,0.25,3226.9,3224.8,0.03100906]
[1736468606431,0.03047294,3225.6,3225.2,3.10057]
[1736468606792,0.7753,3226.1,3225.2,3.10057]
[1736468606793,0.7753,3226.1,3225.4,0.7964]
[1736468607380,0.03047294,3226.0,3225.4,0.7964]
[1736468607547,3.03047294,3226.0,3225.4,0.7964]
[1736468608838,0.55,3225.9,3225.0,0.7809]
[1736468609033,3.55,3225.5,3225.0,0.7809]
[1736468609262,0.03047294,3225.4,3225.0,0.7809]
[1736468609864,0.7753,3226.1,3225.0,0.7809]
[1736468610093,0.03047294,3225.3,3225.2,3.10055]
[1736468610292,0.7759,3226.5,3225.2,3.34855]
[1736468610604,3.0,3226.4,3225.3,0.7684]
[1736468610748,3.0,3226.1,3225.3,0.7684]
[1736468611137,0.03059101,3226.0,3225.3,0.7684]
[1736468611394,0.55,3225.6,3224.8,0.8227]
[1736468611693,1.382,3225.2,3224.5,0.1636007]
[1736468611992,0.448255,3225.1,3224.5,0.1636007]
[1736468612134,3.0,3225.4,3224.5,0.1636007]
[1736468612509,0.7915,3225.6,3224.5,0.1636007]
[1736468612783,0.03059101,3225.3,3224.7,0.7972]
[1736468612988,7.41899441,3225.9,3224.8,0.03100656]
[1736468613147,3.74189944,3225.8,3224.8,3.13194656]
[1736468613347,3.74189944,3225.8,3224.8,3.10094]
[1736468613659,0.58059101,3225.7,3224.7,0.7972]
[1736468613839,0.55,3225.1,3224.5,0.1636007]
[1736468614041,0.38574845,3225.0,3224.5,0.1636007]
[1736468614549,0.03074845,3225.0,3224.5,0.1636007]
[1736468614895,3.0,3224.6,3224.5,0.1636007]
[1736468615037,0.55,3224.7,3224.5,0.1636007]
[1736468615237,6.10115,3224.6,3224.5,0.1636007]
[1736468615472,6.68189845,3224.6,3224.5,0.1636007]
[1736468615794,7.70283774,3224.6,3224.5,0.1636007]
[1736468616554,7.70283774,3224.6,3223.4,0.7565]
[1736468616555,3.10167,3224.1,3223.4,0.7565]
[1736468616754,0.55,3224.2,3223.4,0.7565]
[1736468616959,3.10211,3223.7,3222.9,0.7565]
[1736468617159,3.0,3223.4,3222.9,0.7565]
[1736468617381,0.38687399,3224.1,3223.0,0.7695]
[1736468617604,3.10129,3224.5,3223.3,0.7545]
[1736468617756,3.0,3224.4,3223.4,3.1023]
[1736468617957,3.0,3224.4,3223.3,0.7545]
[1736468617958,0.03074845,3224.4,3223.3,0.7545]
[1736468618208,0.7745,3225.3,3224.3,3.85594]
[1736468618413,0.7745,3225.3,3224.4,0.03100943]
[1736468618560,0.03074845,3225.2,3224.3,0.7545]
[1736468618895,3.10039,3225.4,3224.3,0.7545]
[1736468618896,3.10039,3225.4,3224.3,3.85594]
[1736468619071,3.03074845,3225.1,3224.3,0.7545]
[1736468619266,3.0,3225.2,3224.4,0.03101164]
[1736468619684,0.02956728,3225.1,3224.3,0.7545]
[1736468619887,0.30295673,3225.0,3224.3,0.7545]
[1736468620397,0.02956728,3224.9,3224.4,3.13233953]
[1736468620560,6.62768441,3225.7,3224.4,0.03100953]
[1736468620891,0.02956728,3225.5,3224.5,0.767]
[1736468621097,0.02956728,3225.5,3224.5,3.86823]
[1736468621256,0.02956728,3225.5,3224.6,3.10115]
[1736468621459,0.72540301,3225.5,3224.6,3.10115]
[1736468622195,0.02956728,3225.5,3224.7,0.03100635]
[1736468622381,1.21983915,3226.0,3224.8,0.7959]
[1736468622590,0.02956728,3225.9,3225.0,0.7959]
[1736468622791,0.8302,3226.4,3225.6,0.7959]
[1736468622972,0.02956728,3226.3,3225.6,3.89609]
[1736468623171,4.17907892,3226.6,3225.7,0.03099787]
[1736468623376,0.02956728,3226.5,3225.7,3.13101787]
[1736468624499,0.02956728,3226.5,3225.6,0.7959]
[1736468625591,0.02956728,3226.5,3225.9,3.09981]
[1736468625897,3.88047,3227.0,3225.9,3.09981]
[1736468626205,0.42701092,3226.9,3225.9,3.09981]
[1736468626400,0.02956728,3226.8,3225.9,3.09981]
[1736468630297,0.02956728,3226.8,3225.7,3.10007]
[1736468630866,0.02956728,3226.8,3225.6,0.7959]
[1736468631188,3.0,3226.4,3225.5,3.10025]
[1736468631508,0.03120088,3226.3,3225.5,3.1002]
[1736468631711,0.03120088,3226.3,3225.6,3.10018]
[1736468633904,0.03120088,3226.3,3225.4,3.10038]
[1736468634226,0.03120088,3226.3,3225.3,1.0493]
[1736468634394,0.03120088,3226.3,3225.5,3.10028]
[1736468635069,0.45718697,3226.3,3225.5,3.10028]
[1736468636206,0.45718697,3226.3,3225.3,4.14977]
[1736468636408,0.45718697,3226.3,3225.3,3.89777]
[1736468636570,0.45718697,3226.3,3225.3,0.7973]
[1736468636771,0.45718697,3226.3,3225.4,3.10035]
[1736468636970,0.8054,3226.1,3225.2,0.252]
[1736468637310,0.8054,3226.1,3225.3,3.10047]
[1736468637802,0.03159438,3226.0,3225.3,3.10047]
[1736468638004,0.8054,3226.1,3225.3,3.10047]
[1736468638306,0.03159438,3226.0,3225.3,3.10047]
[1736468638671,0.41529382,3226.0,3225.0,0.8193]
[1736468638871,0.41529382,3226.0,3225.1,0.03100216]
[1736468638872,0.03159438,3226.0,3225.1,0.03100216]
[1736468639209,0.03159438,3226.0,3225.2,3.10057]
[1736468639405,0.03159438,3226.0,3225.0,3.92004]
[1736468639613,0.39367144,3225.9,3225.0,3.92004]
[1736468639782,0.39367144,3225.9,3225.1,0.03100216]
[1736468640109,0.8303,3225.7,3225.1,3.13164216]
[1736468640296,0.8303,3225.7,3224.4,0.759]
[1736468640613,3.1003,3225.5,3224.4,3.86026]
[1736468640908,3.10047,3225.4,3224.4,0.759]
[1736468641111,0.365047,3225.3,3224.4,0.759]
[1736468641633,0.365047,3225.3,3224.5,0.03100929]
[1736468641813,0.03159438,3225.2,3224.5,0.03100929]
[1736468641978,0.7895,3225.1,3224.4,0.759]
[1736468642507,0.7895,3225.1,3224.3,3.10143]
[1736468642508,0.03159438,3225.0,3224.3,3.10143]
[1736468642729,0.03159438,3225.0,3224.4,3.13235929]
[1736468642925,0.03159438,3225.0,3224.4,0.03100929]
[1736468643131,0.03159438,3225.0,3224.5,0.7623]
[1736468643343,0.03159438,3225.0,3224.8,3.10091]
[1736468643541,0.7823,3225.4,3224.8,3.10091]
[1736468643831,0.7823,3225.4,3224.5,0.7623]
[1736468644015,0.03078118,3225.3,3224.6,3.10113]
[1736468644219,0.03078118,3225.3,3224.3,3.10135]
[1736468644408,0.03078118,3225.3,3224.5,3.10121]
[1736468644934,0.03078118,3225.3,3225.2,3.10058]
[1736468645135,0.03078118,3225.3,3225.2,3.13158006]
[1736468645291,0.7706,3226.1,3225.2,3.10058]
[1736468645494,0.38963915,3226.9,3225.3,0.03100082]
[1736468645732,0.03078118,3226.0,3225.9,3.09981]
[1736468645947,0.778,3226.8,3226.2,3.09961]
[1736468646096,0.778,3226.8,3226.3,3.09952]
[1736468646435,3.09855,3227.4,3226.3,3.09952]
[1736468646436,0.03078118,3226.7,3226.4,3.09937]
[1736468646630,0.55,3227.4,3226.4,3.09937]
[1736468646819,0.03078118,3227.3,3226.4,3.09937]
[1736468647148,0.31292612,3227.2,3226.3,0.03099105]
[1736468647351,0.31292612,3227.2,3226.2,3.09959]
[1736468647561,3.12937118,3227.3,3226.2,3.09959]
[1736468647896,3.09859,3227.3,3226.2,3.09959]
[1736468648208,3.0,3227.2,3226.2,3.09959]
[1736468648535,3.09867,3227.2,3226.0,3.91109]
[1736468648845,3.09867,3227.2,3225.7,3.10001]
[1736468648846,3.0991,3226.8,3225.7,3.91136]
[1736468649130,3.09921,3226.7,3225.7,0.8113]
[1736468649436,0.778,3226.6,3225.6,0.252]
[1736468649605,0.778,3226.6,3225.6,3.35211]
[1736468649810,3.64948,3226.4,3225.4,0.8113]
[1736468650015,3.64948,3226.4,3225.5,0.03099947]
[1736468650219,3.64948,3226.4,3225.4,0.8113]
[1736468650632,3.64948,3226.4,3225.3,3.10039]
[1736468650942,0.8322,3226.2,3225.1,0.7808]